bitfinex/quotes_SOLUSD_20260217
["timestamp","ask_amount","ask_price","bid_price","bid_amount"]
[1771296736876,1.09224046,87.639,87.6,18.82]
[1771296737782,11.41057532,87.638,87.592,11.41656772]
[1771296738079,1.09224046,87.637,87.6,3.19045064]
[1771296738661,1.09224046,87.637,87.61,3.19045064]
[1771296739461,1.09224046,87.65,87.62,3.19045064]
[1771296739885,1.09224046,87.648,87.62,3.19045064]
[1771296740082,1.09224046,87.648,87.608,28.53589862]
[1771296740083,1.09224046,87.689,87.64,3.19045064]
[1771296740386,1.09224046,87.689,87.624,4.61729252]
[1771296740387,1.09224046,87.688,87.65,3.19045064]
[1771296740772,1.09224046,87.688,87.644,18.8]
[1771296740963,1.09224046,87.688,87.64,3.19045064]
[1771296741160,39.91378622,87.689,87.64,3.19045064]
[1771296741161,1.09224046,87.679,87.64,3.19045064]
[1771296741365,1.09224046,87.679,87.65,3.19045064]
[1771296741580,1.09224046,87.679,87.631,0.14216157]
[1771296741760,1.09224046,87.669,87.63,3.19045064]
[1771296741965,1.09224046,87.667,87.63,3.18618847]
[1771296742269,1.09224046,87.667,87.62,18.78]
[1771296742270,1.09224046,87.667,87.621,0.14216157]
[1771296742877,1.09224046,87.659,87.62,18.78]
[1771296743066,1.09224046,87.659,87.62,21.96618847]
[1771296744166,1.09224046,87.659,87.63,3.18618847]
[1771296744359,1.09224046,87.657,87.621,11.55495074]
[1771296744772,11.40797189,87.658,87.6,28.53874797]
[1771296744773,1.09224046,87.649,87.6,28.53874797]
[1771296744967,1.09224046,87.649,87.6,3.18618847]
[1771296745170,1.09224046,87.649,87.601,0.14216157]
[1771296745582,1.09224046,87.649,87.6,3.18618847]
[1771296745783,1.09224046,87.639,87.6,3.18618847]
[1771296746384,1.09224046,87.638,87.601,11.55755637]
[1771296749584,1.09224046,87.636,87.601,11.55755637]
[1771296751873,1.09224046,87.634,87.601,11.55755637]
[1771296752183,11.41096593,87.635,87.587,11.41719144]
[1771296752184,1.09224046,87.619,87.587,11.41719144]
[1771296752567,1.09224046,87.619,87.582,11.41779557]
[1771296752771,1.09224046,87.599,87.531,11.42452388]
[1771296752972,1.09224046,87.589,87.551,18.8]
[1771296753380,3.18618847,87.59,87.551,18.8]
[1771296753381,1.09224046,87.587,87.551,11.42191408]
[1771296753776,1.09224046,87.587,87.552,0.14216157]
[1771296753991,1.09224046,87.587,87.551,11.42191408]
[1771296753992,1.09224046,87.63,87.58,3.18618847]
[1771296754184,1.09224046,87.63,87.6,3.18618847]
[1771296755792,1.09224046,87.628,87.6,3.18618847]
[1771296756371,1.09224046,87.628,87.601,11.4153948]
[1771296756574,1.09224046,87.628,87.6,3.18618847]
[1771296757777,1.09224046,87.628,87.6,14.60169015]
[1771296758197,11.41200771,87.627,87.6,14.60169015]
[1771296758494,1.09224046,87.626,87.6,14.60169015]
[1771296761283,1.09224046,87.624,87.59,3.18618847]
[1771296762578,1.09224046,87.622,87.586,18.82]
[1771296764984,1.09224046,87.622,87.59,3.18618847]
[1771296765400,11.41278917,87.621,87.59,3.18618847]
[1771296765599,12.50502963,87.621,87.59,3.18618847]
[1771296765903,1.09224046,87.62,87.59,3.18618847]
[1771296767288,1.09224046,87.618,87.587,11.41721945]
[1771296767494,1.09224046,87.609,87.56,3.18618847]
[1771296767789,11.41304968,87.619,87.56,3.18618847]
[1771296767790,1.09224046,87.599,87.56,3.18618847]
[1771296767999,1.09224046,87.599,87.561,0.14216157]
[1771296768896,1.09224046,87.599,87.57,3.18618847]
[1771296769480,1.09224046,87.599,87.571,11.41930547]
[1771296770101,1.09224046,87.597,87.571,11.41930547]
[1771296770787,1.09224046,87.604,87.571,11.41930547]
[1771296770994,1.09224046,87.609,87.58,3.18618847]
[1771296771306,1.09224046,87.625,87.6,3.18618847]
[1771296771601,1.09224046,87.638,87.601,11.4153948]
[1771296772309,1.09224046,87.638,87.596,11.41593461]
[1771296772801,1.09224046,87.629,87.589,11.41689242]
[1771296773108,1.09224046,87.629,87.59,3.18618847]
[1771296773404,1.09224046,87.629,87.601,11.4153948]
[1771296773717,11.41139084,87.632,87.601,11.4153948]
[1771296774005,1.09224046,87.631,87.601,11.4153948]
[1771296774606,12.50306857,87.637,87.601,11.4153948]
[1771296774988,1.09224046,87.636,87.601,11.4153948]
[1771296775884,1.09224046,87.634,87.6,3.18618847]
[1771296776689,1.09224046,87.634,87.6,14.60160982]
[1771296779206,1.09224046,87.632,87.601,11.4153948]
[1771296781090,1.09224046,87.63,87.601,11.4153948]
[1771296781510,12.50314196,87.636,87.601,11.4153948]
[1771296781808,1.09224046,87.635,87.601,11.4153948]
[1771296783108,15.88,87.656,87.587,18.8]
[1771296783109,1.09224046,87.619,87.587,11.41715787]
[1771296784389,11.41317994,87.618,87.581,11.56016319]
[1771296784605,1.09224046,87.617,87.581,11.56016319]
[1771296785391,1.09224046,87.609,87.576,11.41854047]
[1771296786713,1.09224046,87.607,87.562,18.8]
[1771296786916,1.09224046,87.607,87.566,11.41994767]
[1771296787411,1.09224046,87.607,87.57,3.18618847]
[1771296787708,1.09224046,87.607,87.566,11.41994767]
[1771296788098,1.09224046,87.599,87.566,11.41994767]
[1771296788810,11.41506869,87.604,87.58,3.18618847]
[1771296789610,11.41506869,87.604,87.571,11.41930547]
[1771296790092,1.09224046,87.604,87.571,11.41930547]
[1771296792595,1.09224046,87.604,87.572,0.14216157]
[1771296798201,11.41513418,87.603,87.571,11.41930547]
[1771296798407,1.09224046,87.599,87.571,11.41930547]
[1771296804006,1.09224046,87.599,87.57,3.19051627]
[1771296806227,1.09224046,87.597,87.57,11.41932125]
[1771296808309,1.09224046,87.597,87.57,3.19051627]
[1771296809134,1.09224046,87.597,87.562,0.14216157]
[1771296809435,1.09224046,87.595,87.562,0.14216157]
[1771296814131,1.09224046,87.593,87.561,11.42060963]
[1771296815635,3.19051627,87.6,87.561,11.42060963]
[1771296815636,1.09224046,87.591,87.561,11.42060963]
[1771296816242,11.41550236,87.601,87.57,3.19051627]
[1771296816424,12.50774282,87.601,87.57,3.19051627]
[1771296816818,1.09224046,87.6,87.57,3.19051627]
[1771296817218,1.09224046,87.6,87.571,11.41930547]
[1771296817417,1.09224046,87.598,87.571,11.41930547]
[1771296820318,11.41591607,87.597,87.562,0.14216157]
[1771296820519,1.09224046,87.596,87.562,0.14216157]
[1771296821823,1.09224046,87.596,87.557,18.8]
[1771296822026,1.09224046,87.589,87.553,11.42165317]
[1771296822435,1.09224046,87.587,87.541,11.42321883]
[1771296822634,1.09224046,87.579,87.542,0.14216157]
[1771296828246,1.09224046,87.577,87.542,0.14216157]
[1771296834946,1.09224046,87.569,87.53,3.39051627]
[1771296835329,1.09224046,87.569,87.531,0.14216157]
[1771296836261,1.09224046,87.568,87.531,40.12799515]
[1771296838339,1.09224046,87.577,87.55,3.19051627]
[1771296839350,11.41865351,87.576,87.55,3.19051627]
[1771296839545,1.09224046,87.575,87.55,3.19051627]
[1771296840444,1.09224046,87.59,87.552,0.14216157]
[1771296840646,221.85775881,87.631,87.571,0.82558536]
[1771296840647,18.97051627,87.61,87.571,0.82558536]
[1771296840958,3.19051627,87.61,87.571,0.82558536]
[1771296842245,11.4143524,87.609,87.572,11.41917507]
[1771296842459,11.4143524,87.609,87.573,0.82461412]
[1771296842764,11.4143524,87.609,87.553,18.8]
[1771296842765,0.93792529,87.579,87.531,12.249138]
[1771296842964,0.93792529,87.569,87.532,0.82461412]
[1771296844262,0.93792529,87.567,87.534,0.82366505]
[1771296846244,0.93792529,87.567,87.536,0.8279422]
[1771296848259,0.93792529,87.567,87.538,0.83729747]
[1771296848567,0.93792529,87.567,87.537,11.42374081]
[1771296849062,0.93792529,87.559,87.537,11.42374081]
[1771296850060,0.93792529,87.559,87.536,11.42387132]
[1771296851370,0.93792529,87.559,87.536,12.27478198]
[1771296851554,0.93792529,87.559,87.537,0.85091066]
[1771296855565,0.93792529,87.559,87.531,12.29507179]
[1771296855866,0.93792529,87.559,87.532,0.87054791]
[1771296856645,0.96424819,87.557,87.532,0.87054791]
[1771296857771,0.96424819,87.557,87.533,11.42426284]
[1771296858175,0.96424819,87.565,87.534,0.87755089]
[1771296861052,0.96424819,87.563,87.534,0.87755089]
[1771296861367,0.96424819,87.559,87.533,11.42426284]
[1771296866982,0.96424819,87.559,87.534,0.9071434]
[1771296869575,0.96424819,87.559,87.535,11.42400182]
[1771296869881,0.96424819,87.559,87.536,0.91634406]
[1771296872673,0.96424819,87.559,87.537,12.34897191]
[1771296873671,0.96424819,87.559,87.538,0.92812692]
[1771296874174,0.96424819,87.549,87.521,0.93347008]
[1771296874477,0.96424819,87.568,87.531,0.93347008]
[1771296874782,0.96424819,87.567,87.531,0.93347008]
[1771296875783,0.96424819,87.559,87.528,0.93347008]
[1771296876083,0.96424819,87.559,87.529,11.42478492]
[1771296878877,0.96424819,87.559,87.524,12.35890767]
[1771296879086,0.96424819,87.559,87.525,0.93347008]
[1771296879586,0.96424819,87.549,87.525,0.93347008]
[1771296881798,0.96424819,87.549,87.526,11.42517651]
[1771296881976,0.96424819,87.549,87.527,0.93347008]
[1771296885595,0.96424819,87.549,87.52,3.19408345]
[1771296885596,0.96424819,87.549,87.529,1.00177705]
[1771296888198,0.96424819,87.549,87.53,11.4246544]
[1771296888500,0.96424819,87.549,87.525,1.00177705]
[1771296890480,11.42174409,87.553,87.513,18.82]
[1771296890481,11.42052588,87.562,87.527,1.01346917]
[1771296890684,0.96170608,87.568,87.531,1.01346917]
[1771296893690,15.76,87.581,87.53,3.19408345]
[1771296893691,0.96170608,87.599,87.561,1.01346917]
[1771296893888,39.94430622,87.622,87.551,1.15563074]
[1771296893889,0.96170608,87.589,87.551,1.15563074]
[1771296895607,0.96170608,87.589,87.553,1.01346917]
[1771296898481,0.96170608,87.589,87.561,1.01346917]
[1771296898684,0.96170608,87.589,87.555,1.01346917]
[1771296898886,0.96170608,87.569,87.536,1.01346917]
[1771296899197,0.96170608,87.569,87.541,1.01346917]
[1771296900105,0.96170608,87.569,87.542,11.42308834]
[1771296900308,0.96170608,87.588,87.551,1.01346917]
[1771296900508,0.96170608,87.588,87.561,1.01346917]
[1771296901303,0.96170608,87.593,87.561,1.01346917]
[1771296902087,0.96170608,87.593,87.563,1.01346917]
[1771296902599,0.96170608,87.591,87.563,1.01346917]
[1771296905209,0.96170608,87.591,87.564,11.42021835]
[1771296905514,0.96170608,87.591,87.565,1.01346917]
[1771296908117,0.96170608,87.606,87.57,3.19408345]
[1771296908301,0.96170608,87.609,87.571,1.01346917]
[1771296908610,0.96170608,87.609,87.566,11.41995751]
[1771296908611,0.96170608,87.609,87.581,1.01346917]
[1771296909598,0.96170608,87.608,87.581,1.01346917]
[1771296912398,0.96170608,87.606,87.581,1.01346917]
[1771296913214,0.96170608,87.606,87.583,1.01346917]
[1771296913810,11.41379467,87.614,87.583,1.01346917]
[1771296914017,11.41379467,87.614,87.582,11.41787125]
[1771296914018,0.96170608,87.619,87.591,1.01346917]
[1771296914518,0.96192816,87.616,87.586,1.01241573]
[1771296915907,0.96192816,87.616,87.591,1.01241573]
[1771296916823,0.96192816,87.616,87.593,1.01241573]
[1771296918422,0.96192816,87.616,87.595,1.01241573]
[1771296919211,0.96192816,87.624,87.595,1.01241573]
[1771296920730,3.19408345,87.63,87.595,1.01241573]
[1771296920731,0.96192816,87.622,87.595,1.01241573]
[1771296921416,0.96192816,87.622,87.597,1.01241573]
[1771296924028,0.96192816,87.62,87.592,12.42894253]
[1771296924336,0.96192816,87.62,87.592,11.4165268]
[1771296924537,0.96192816,87.62,87.593,1.01241573]
[1771296926135,0.96192816,87.619,87.594,12.42872278]
[1771296926518,0.96192816,87.619,87.595,1.01241573]
[1771296928119,0.96192816,87.619,87.597,1.01241573]
[1771296928931,0.96192816,87.629,87.597,1.01241573]
[1771296930429,0.96192816,87.619,87.591,1.01241573]
[1771296930630,0.96192816,87.619,87.586,18.82]
[1771296930931,0.96192816,87.619,87.576,1.01241573]
[1771296930932,0.96192816,87.609,87.576,11.41865351]
[1771296931319,0.96192816,87.599,87.571,11.41923457]
[1771296931520,0.96192816,87.599,87.572,1.01241573]
[1771296932340,0.96192816,87.599,87.574,1.01241573]
[1771296932541,0.96192816,87.616,87.581,1.01241573]
[1771296933834,0.96192816,87.609,87.581,1.01241573]
[1771296934016,0.96192816,87.609,87.574,1.01241573]
[1771296934645,0.96192816,87.609,87.575,12.43119962]
[1771296934822,0.96192816,87.609,87.576,1.01241573]
[1771296937744,0.96192816,87.609,87.578,1.01241573]
[1771296939329,0.96192816,87.609,87.579,11.41826236]
[1771296942023,0.96192816,87.609,87.58,1.01241573]
[1771296942947,0.96192816,87.609,87.581,1.01241573]
[1771296943739,0.96192816,87.609,87.583,1.01241573]
[1771296946131,0.96192816,87.609,87.585,0.99296242]
[1771296946327,1.06284333,87.621,87.591,0.99296242]
[1771296946940,1.06284333,87.626,87.591,0.99296242]
[1771296947147,1.06284333,87.626,87.601,0.99296242]
[1771296949251,11.4115737,87.631,87.603,0.99296242]
[1771296949438,1.02969224,87.63,87.603,0.99296242]
[1771296950657,1.02969224,87.629,87.603,0.99296242]
[1771296951237,1.02969224,87.629,87.598,0.9647495]
[1771296952337,1.02969224,87.629,87.601,0.9647495]
[1771296952735,1.02969224,87.634,87.603,0.9647495]
[1771296952954,1.02969224,87.634,87.611,0.9647495]
[1771296953135,1.02969224,87.641,87.611,0.9647495]
[1771296953855,14.599108,87.64,87.611,12.37872728]
[1771296954054,1.02969224,87.639,87.611,11.41397778]
[1771296955940,1.02969224,87.639,87.604,11.41500388]
[1771296956135,1.02969224,87.639,87.605,0.9647495]
[1771296956343,15.74,87.645,87.605,0.9647495]
[1771296956344,1.02969224,87.629,87.605,0.9647495]
[1771296958445,1.02969224,87.629,87.603,11.41500824]
[1771296958962,1.02969224,87.629,87.604,0.9647495]
[1771296960766,1.02969224,87.629,87.605,11.41487358]
[1771296960943,1.02969224,87.629,87.601,11.41533321]
[1771296961140,1.02969224,87.627,87.583,0.9647495]
[1771296962448,15.74,87.629,87.585,0.9647495]
[1771296962449,1.02969224,87.625,87.585,0.9647495]
[1771296963651,1.02969224,87.625,87.591,0.9647495]
[1771296966450,1.02969224,87.625,87.584,39.96163682]
[1771296966451,1.02969224,87.619,87.576,0.9647495]
[1771296966649,1.02969224,87.619,87.581,0.9647495]
[1771296967465,1.02969224,87.619,87.591,0.9647495]
[1771296968359,1.02969224,87.618,87.591,12.38144044]
[1771296968566,1.02969224,87.618,87.591,11.41669094]
[1771296970769,1.02969224,87.616,87.586,0.9647495]
[1771296976867,0.98637172,87.614,87.586,0.9647495]
[1771296983177,0.98637172,87.612,87.588,1.04930167]
[1771296984163,0.98637172,87.612,87.583,12.46700471]
[1771296984570,0.98637172,87.612,87.584,1.04930167]
[1771296987468,11.41364272,87.615,87.586,1.04930167]
[1771296987675,0.98637172,87.628,87.591,1.04930167]
[1771296988486,0.98637172,87.628,87.593,1.04930167]
[1771296988691,0.98637172,87.648,87.611,1.04930167]
[1771296989368,0.98637172,87.646,87.613,1.04930167]
[1771296992372,0.98637172,87.649,87.621,1.04930167]
[1771296992982,0.1,87.65,87.621,1.04930167]
[1771296993973,1.06906314,87.678,87.64,3.18954088]
[1771296994207,1.06906314,87.678,87.65,3.18954088]
[1771296994493,1.06906314,87.678,87.651,11.40888295]
[1771296995189,1.06906314,87.686,87.66,3.18954088]
[1771296995392,1.06906314,87.692,87.661,0.14216157]
[1771296997384,1.06906314,87.692,87.661,40.06869673]
[1771296998071,1.06906314,87.709,87.681,0.14216157]
[1771296998280,1.06906314,87.704,87.68,3.18954088]
[1771296998481,1.06906314,87.704,87.679,18.88]
[1771296999273,1.06906314,87.704,87.68,11.40510948]
[1771296999692,1.06906314,87.704,87.68,14.59465036]
[1771297000499,1.06906314,87.704,87.68,11.40510948]
[1771297002997,1.06906314,87.704,87.68,14.59465036]
[1771297003181,1.06906314,87.716,87.681,0.14216157]
[1771297003793,0.1,87.72,87.694,0.14216157]
[1771297003993,0.1,87.72,87.695,18.88]
[1771297004234,3.18954088,87.76,87.711,1.04260673]
[1771297004373,14.58436865,87.76,87.713,1.04260673]
[1771297004581,14.58436865,87.76,87.721,1.04260673]
[1771297005075,14.58436865,87.76,87.723,1.04260673]
[1771297005276,11.39482777,87.76,87.723,1.04260673]
[1771297005790,3.18954088,87.77,87.722,11.39964889]
[1771297005791,11.39418765,87.765,87.731,1.04260673]
[1771297006200,0.97286883,87.759,87.723,1.04260673]
[1771297006576,0.97286883,87.749,87.702,0.14216157]
[1771297006799,0.97286883,87.739,87.703,18.88]
[1771297006975,0.97286883,87.738,87.702,11.40224852]
[1771297007295,0.97286883,87.745,87.713,1.04260673]
[1771297009075,0.97286883,87.745,87.714,11.4006886]
[1771297009284,0.97286883,87.745,87.715,1.04260673]
[1771297009799,0.97286883,87.745,87.702,28.5056213]
[1771297009800,0.98637292,87.739,87.702,18.88]
[1771297010586,0.98637292,87.739,87.702,19.86436809]
[1771297010987,0.98637292,87.737,87.703,0.98436809]
[1771297013780,0.98637292,87.729,87.703,0.98436809]
[1771297014182,0.98637292,87.729,87.697,11.40289861]
[1771297014384,11.39782985,87.736,87.692,0.98436809]
[1771297014385,0.98637292,87.719,87.692,0.98436809]
[1771297015184,0.98637292,87.719,87.692,12.38791687]
[1771297015499,0.98637292,87.719,87.693,0.98436809]
[1771297016579,0.98637292,87.719,87.695,0.98436809]
[1771297016780,0.98637292,87.717,87.681,12.3893475]
[1771297016996,0.98637292,87.717,87.682,19.86436809]
[1771297017688,0.98637292,87.709,87.676,12.38994732]
[1771297017892,0.98637292,87.709,87.677,0.98436809]
[1771297018079,0.98637292,87.709,87.677,12.38986782]
[1771297018281,0.98637292,87.709,87.678,0.98436809]
[1771297018482,0.98637292,87.709,87.68,3.18954088]
[1771297018895,0.98637292,87.709,87.681,11.40497941]
[1771297019290,0.98637292,87.707,87.681,11.40497941]
[1771297020714,0.98637292,87.707,87.672,0.98436809]
[1771297020917,0.98637292,87.705,87.672,12.39045094]
[1771297021097,0.98637292,87.705,87.673,0.98436809]
[1771297022313,3.18954088,87.71,87.672,11.40608285]
[1771297022314,3.18954088,87.79,87.717,0.98436809]
[1771297022608,12.2932769,87.8,87.762,0.98436809]
[1771297022911,12.2932769,87.8,87.77,3.18954088]
[1771297023107,12.2932769,87.8,87.763,0.98436809]
[1771297023406,3.18954088,87.79,87.756,30.27513396]
[1771297023615,3.18954088,87.79,87.755,0.98436809]
[1771297023909,3.18954088,87.79,87.75,3.18954088]
[1771297024114,3.18954088,87.79,87.742,18.88]
[1771297024296,39.86377976,87.799,87.74,3.18954088]
[1771297024297,0.98637292,87.779,87.74,3.18954088]
[1771297024496,0.98637292,87.779,87.741,0.98436809]
[1771297025187,0.98637292,87.777,87.734,11.39808968]
[1771297025494,0.98637292,87.777,87.74,3.18954088]
[1771297026399,0.98637292,87.777,87.741,0.98436809]
[1771297026719,0.98637292,87.777,87.734,9.43508865]
[1771297026912,0.98637292,87.777,87.74,3.18954088]
[1771297027213,1.07815181,87.775,87.741,11.39718033]
[1771297028100,1.07815181,87.775,87.74,3.18954088]
[1771297028299,11.3926358,87.776,87.69,3.18954088]
[1771297028300,1.07815181,87.749,87.69,3.18954088]
[1771297028504,1.07815181,87.751,87.72,3.18954088]
[1771297028827,1.07815181,87.749,87.715,0.04239745]
[1771297028991,1.07815181,87.749,87.71,3.18954088]
[1771297029190,1.07815181,87.749,87.72,3.18954088]
[1771297029393,1.07815181,87.749,87.72,14.58932951]
[1771297029609,11.39627114,87.748,87.72,3.18954088]
[1771297029915,30.0,87.746,87.72,3.18954088]
[1771297030115,31.07815181,87.746,87.72,3.18954088]
[1771297030297,1.07815181,87.745,87.72,3.18954088]
[1771297030610,1.07815181,87.745,87.718,0.04590163]
[1771297030810,31.07815181,87.744,87.718,0.04590163]
[1771297031207,1.07815181,87.744,87.719,11.40003876]
[1771297031409,11.39627114,87.748,87.72,3.18954088]
[1771297031607,12.47442295,87.748,87.72,3.18954088]
[1771297031904,1.07815181,87.747,87.72,3.18954088]
[1771297032693,28.48498529,87.766,87.718,0.04590163]
[1771297032694,1.07815181,87.745,87.718,0.04590163]
[1771297033595,1.07815181,87.745,87.711,11.40107854]
[1771297033807,1.07815181,87.745,87.712,0.05957507]
[1771297035410,1.07815181,87.745,87.713,0.06940972]
[1771297035617,1.07815181,87.745,87.721,0.06940972]
[1771297036514,1.07815181,87.745,87.72,3.18954088]
[1771297036700,1.08741174,87.743,87.711,11.40107854]
[1771297036895,45.56911257,87.779,87.711,11.40107854]
[1771297036896,1.08741174,87.787,87.731,0.07260411]
[1771297037205,1.08741174,87.786,87.751,0.07260411]
[1771297037400,1.08741174,87.777,87.741,11.47292328]
[1771297038117,1.08741174,87.769,87.729,11.39873929]
[1771297038294,1.08741174,87.759,87.729,11.39873929]
[1771297038496,1.08741174,87.759,87.721,11.39977884]
[1771297038716,1.08741174,87.749,87.715,11.40045191]
[1771297039127,1.08741174,87.749,87.715,11.48241234]
[1771297039305,1.08741174,87.749,87.716,0.08196043]
[1771297039509,1.08741174,87.747,87.716,0.08196043]
[1771297040007,1.08741174,87.747,87.711,11.40107854]
[1771297041117,1.08741174,87.739,87.711,11.40107854]
[1771297042098,1.08741174,87.739,87.708,0.08196043]
[1771297043109,1.08741174,87.737,87.708,0.08196043]
[1771297044206,1.08741174,87.735,87.708,0.08196043]
[1771297047321,1.08741174,87.733,87.708,0.08196043]
[1771297050425,28.48983972,87.751,87.701,11.40237853]
[1771297050426,1.08741174,87.749,87.711,0.11367308]
[1771297050627,1.08741174,87.747,87.711,0.11367308]
[1771297051127,1.08741174,87.745,87.712,0.11367308]
[1771297054238,1.08741174,87.739,87.707,11.40159164]
[1771297054419,1.08741174,87.729,87.707,11.40159164]
[1771297054732,1.08741174,87.719,87.682,0.12422522]
[1771297055034,1.08741174,87.719,87.69,3.18076416]
[1771297055535,1.08741174,87.719,87.69,3.30755221]
[1771297056430,1.08741174,87.719,87.691,11.40367882]
[1771297056632,1.08741174,87.719,87.686,11.40427509]
[1771297056930,1.08741174,87.717,87.686,11.40427509]
[1771297057114,1.08741174,87.716,87.687,0.12932095]
[1771297057431,1.08741174,87.716,87.69,3.18076416]
[1771297057733,1.08741174,87.716,87.691,0.13183263]
[1771297058429,1.08741174,87.716,87.674,0.14216157]
[1771297058430,11.39866483,87.73,87.702,0.13433464]
[1771297058813,1.08741174,87.729,87.702,0.13433464]
[1771297059236,1.08741174,87.729,87.698,0.13678726]
[1771297059437,1.08741174,87.729,87.697,11.40288342]
[1771297059438,1.08741174,87.729,87.7,3.31755142]
[1771297060433,1.08741174,87.727,87.701,0.13921245]
[1771297061020,1.08741174,87.727,87.702,0.13921245]
[1771297061538,3.18076416,87.74,87.702,0.13921245]
[1771297061539,1.08741174,87.735,87.702,0.13921245]
[1771297066426,1.13067265,87.733,87.702,0.13921245]
[1771297067946,11.39803048,87.735,87.702,0.13921245]
[1771297067947,1.13067265,87.729,87.702,0.13921245]
[1771297070748,1.08946485,87.727,87.692,0.16622693]
[1771297072649,1.08946485,87.725,87.694,0.17036333]
[1771297074537,28.49172337,87.745,87.683,28.51178662]
[1771297074538,1.08946485,87.719,87.689,11.40393892]
[1771297075345,1.08946485,87.719,87.689,11.5803664]
[1771297075643,1.08946485,87.717,87.689,11.5803664]
[1771297076754,1.08946485,87.715,87.689,11.5803664]
[1771297076932,1.08946485,87.715,87.69,0.17840019]
[1771297078046,11.4006886,87.714,87.684,0.18035313]
[1771297078357,1.08946485,87.713,87.684,0.18035313]
[1771297082439,1.08946485,87.713,87.686,0.18977976]
[1771297083854,1.08946485,87.711,87.685,11.40445914]
[1771297084228,1.08946485,87.711,87.686,0.19340712]
[1771297084953,1.08946485,87.72,87.691,0.19340712]
[1771297085141,1.08946485,87.719,87.691,0.19340712]
[1771297085734,15.7,87.724,87.691,1.12142872]
[1771297087042,39.89558753,87.729,87.691,1.12142872]
[1771297087360,15.7,87.728,87.691,1.12142872]
[1771297087758,1.08946485,87.727,87.691,1.12142872]
[1771297088047,15.7,87.726,87.691,1.12142872]
[1771297088260,1.08946485,87.725,87.691,1.12142872]
[1771297088556,11.39938899,87.724,87.691,1.12142872]
[1771297088757,1.08946485,87.722,87.691,1.12142872]
[1771297091355,11.39977884,87.721,87.691,1.12142872]
[1771297091564,1.08946485,87.72,87.691,1.12142872]
[1771297094057,1.09384608,87.718,87.691,1.12142872]
[1771297095069,1.09384608,87.718,87.686,12.50992307]
[1771297097065,1.09384608,87.716,87.687,1.10560821]
[1771297100365,3.18076416,87.72,87.68,3.18076416]
[1771297100366,1.09384608,87.714,87.689,1.10560821]
[1771297104173,28.49684824,87.729,87.671,28.51538812]
[1771297104174,1.09384608,87.699,87.672,11.40615019]
[1771297104380,3.18076416,87.69,87.668,11.40666162]
[1771297104544,1.09384608,87.688,87.668,11.40666162]
[1771297105363,1.09384608,87.686,87.663,11.40732121]
[1771297106353,15.76,87.685,87.663,11.40732121]
[1771297106553,1.09384608,87.684,87.663,11.40732121]
[1771297114176,1.09384608,87.684,87.663,1.10560821]
[1771297119073,1.09384608,87.684,87.664,11.40719109]
[1771297120767,28.50534171,87.703,87.654,1.10560821]
[1771297120768,1.09384608,87.679,87.654,1.10560821]
[1771297121085,1.09384608,87.677,87.654,1.10560821]
[1771297123590,1.09384608,87.677,87.655,11.40836232]
[1771297123883,1.09384608,87.677,87.649,1.10560821]
[1771297123884,1.09384608,87.669,87.649,1.10560821]
[1771297124062,1.14444307,87.667,87.649,1.10560821]
[1771297124570,1.14444307,87.665,87.636,1.14082697]
[1771297127188,1.14444307,87.665,87.63,3.18428064]
[1771297127189,1.14444307,87.665,87.638,1.14082697]
[1771297127394,1.14444307,87.663,87.638,1.14082697]
[1771297127580,1.14444307,87.661,87.638,1.14082697]
[1771297128391,1.14444307,87.661,87.64,1.14082697]
[1771297130902,11.40771161,87.66,87.621,11.41278917]
[1771297131105,11.40771161,87.66,87.62,11.6129068]
[1771297131106,1.20953726,87.639,87.62,11.6129068]
[1771297131294,17.10953726,87.642,87.621,1.18556372]
[1771297131596,15.9,87.641,87.621,1.18556372]
[1771297132374,17.10953726,87.642,87.621,1.18556372]
[1771297133588,1.20953726,87.641,87.621,1.18556372]
[1771297136104,28.51927903,87.66,87.62,0.2]
[1771297136105,1.20953726,87.649,87.623,1.18556372]
[1771297137085,28.51612065,87.67,87.623,1.18556372]
[1771297137086,1.20953726,87.655,87.623,1.18556372]
[1771297137295,15.92,87.654,87.631,1.18556372]
[1771297137596,1.20953726,87.653,87.631,1.18556372]
[1771297140102,1.20953726,87.653,87.626,1.18556372]
[1771297140296,15.92,87.654,87.626,1.18556372]
[1771297140497,15.92,87.653,87.626,1.18556372]
[1771297141080,1.20953726,87.659,87.626,1.18556372]
[1771297141400,1.20953726,87.657,87.631,1.18556372]
[1771297141905,1.20953726,87.657,87.62,0.2]
[1771297142199,64.1122066,87.825,87.6,0.2]
[1771297142200,1.20953726,87.627,87.6,1.38556372]
[1771297142402,1.20953726,87.625,87.6,1.38556372]
[1771297143303,1.20953726,87.623,87.6,1.38556372]
[1771297143616,1.20953726,87.621,87.6,1.38556372]
[1771297143913,1.20953726,87.619,87.6,0.2]
[1771297144201,1.20953726,87.617,87.6,0.2]
[1771297144382,1.20953726,87.664,87.602,1.18556372]
[1771297144583,45.61500794,87.691,87.611,1.18556372]
[1771297144584,1.20953726,87.639,87.611,1.18556372]
[1771297144798,1.20953726,87.637,87.611,1.18556372]
[1771297145086,1.20953726,87.629,87.6,0.2]
[1771297145282,1.20953726,87.619,87.581,12.60356534]
[1771297145488,1.17979726,87.617,87.582,1.18556372]